[Event "*** Titled Tuesday Blitz"]
[Site "Chess.com"]
[Date "2021.03.02"]
[Round "1"]
[White "chigorin28"]
[Black "Chopper1905"]
[Result "1/2-1/2"]
[WhiteElo "2476"]
[BlackElo "2949"]
[TimeControl "180+1"]
[EndTime "10:09:43 PST"]
[Termination "Game drawn by repetition"]

1. e4 {[%clk 0:03:00.9]} 1... c5 {[%clk 0:02:59.8]} 2. Nf3 {[%clk 0:03:00.8]}
2... e6 {[%clk 0:03:00]} 3. c3 {[%clk 0:03:01.1]} 3... Nf6 {[%clk 0:02:56.8]} 4.
e5 {[%clk 0:03:01.3]} 4... Nd5 {[%clk 0:02:57.4]} 5. d4 {[%clk 0:03:02.1]} 5...
cxd4 {[%clk 0:02:57.7]} 6. cxd4 {[%clk 0:03:03]} 6... d6 {[%clk 0:02:57.3]} 7.
Bd3 {[%clk 0:03:02.9]} 7... dxe5 {[%clk 0:02:38.9]} 8. Nxe5 {[%clk 0:03:01]}
8... Nc6 {[%clk 0:02:14.4]} 9. Nxc6 {[%clk 0:02:48.3]} 9... bxc6 {[%clk
0:02:15.3]} 10. O-O {[%clk 0:02:48.5]} 10... Be7 {[%clk 0:02:15.3]} 11. Nc3
{[%clk 0:02:48.8]} 11... O-O {[%clk 0:02:14.4]} 12. Re1 {[%clk 0:02:46.3]} 12...
Bf6 {[%clk 0:02:07.7]} 13. Bb1 {[%clk 0:02:10.7]} 13... Nxc3 {[%clk 0:01:58.2]}
14. bxc3 {[%clk 0:02:10.5]} 14... Ba6 {[%clk 0:01:41]} 15. Qf3 {[%clk
0:02:07.6]} 15... c5 {[%clk 0:01:23.4]} 16. Be4 {[%clk 0:02:00.1]} 16... Rc8
{[%clk 0:01:20.7]} 17. Ba3 {[%clk 0:01:57.8]} 17... Be7 {[%clk 0:01:16]} 18.
Rad1 {[%clk 0:01:00.6]} 18... Qa5 {[%clk 0:00:50.5]} 19. Bc1 {[%clk 0:00:36.4]}
19... cxd4 {[%clk 0:00:49.8]} 20. cxd4 {[%clk 0:00:36.3]} 20... Qxa2 {[%clk
0:00:23.8]} 21. Qh3 {[%clk 0:00:36]} 21... g6 {[%clk 0:00:22.7]} 22. Bh6 {[%clk
0:00:35.3]} 22... Rfd8 {[%clk 0:00:23]} 23. Ra1 {[%clk 0:00:35.5]} 23... Qc4
{[%clk 0:00:23.2]} 24. Be3 {[%clk 0:00:28.8]} 24... Bb5 {[%clk 0:00:07.4]} 25.
Rec1 {[%clk 0:00:28.8]} 25... Qb4 {[%clk 0:00:06.1]} 26. Rcb1 {[%clk 0:00:28.6]}
26... Qc3 {[%clk 0:00:06.3]} 27. Rxa7 {[%clk 0:00:22.9]} 27... Bd3 {[%clk
0:00:05.6]} 28. Bxd3 {[%clk 0:00:17.4]} 28... Qxd3 {[%clk 0:00:06.5]} 29. Raa1
{[%clk 0:00:13.8]} 29... Bf6 {[%clk 0:00:05.8]} 30. Rd1 {[%clk 0:00:14.3]} 30...
Qc2 {[%clk 0:00:04.3]} 31. Qf3 {[%clk 0:00:13.9]} 31... Qf5 {[%clk 0:00:04.4]}
32. Qe2 {[%clk 0:00:13]} 32... h5 {[%clk 0:00:03.9]} 33. h3 {[%clk 0:00:13.2]}
33... Kg7 {[%clk 0:00:04.3]} 34. Qd2 {[%clk 0:00:07.5]} 34... Rc2 {[%clk
0:00:04.6]} 35. Qe1 {[%clk 0:00:07.1]} 35... Rd5 {[%clk 0:00:05]} 36. Rd2 {[%clk
0:00:06.4]} 36... Rxd2 {[%clk 0:00:04.6]} 37. Qxd2 {[%clk 0:00:07.3]} 37... Qe4
{[%clk 0:00:05]} 38. Qc3 {[%clk 0:00:05.7]} 38... Bxd4 {[%clk 0:00:03]} 39.
Bxd4+ {[%clk 0:00:05.5]} 39... Qxd4 {[%clk 0:00:03.9]} 40. Qxd4+ {[%clk
0:00:05.7]} 40... Rxd4 {[%clk 0:00:04.8]} 41. Re1 {[%clk 0:00:06]} 41... h4
{[%clk 0:00:05.3]} 42. Re2 {[%clk 0:00:05.2]} 42... g5 {[%clk 0:00:05.8]} 43.
Kh2 {[%clk 0:00:05.7]} 43... Rd6 {[%clk 0:00:06.2]} 44. g3 {[%clk 0:00:06]}
44... hxg3+ {[%clk 0:00:06.1]} 45. fxg3 {[%clk 0:00:05.7]} 45... Rd4 {[%clk
0:00:05.7]} 46. Kg2 {[%clk 0:00:06.1]} 46... Kg6 {[%clk 0:00:06.2]} 47. Kf3
{[%clk 0:00:06.5]} 47... Ra4 {[%clk 0:00:06.1]} 48. Re3 {[%clk 0:00:06.2]} 48...
Ra5 {[%clk 0:00:06.1]} 49. Rd3 {[%clk 0:00:06.3]} 49... f5 {[%clk 0:00:05.8]}
50. Re3 {[%clk 0:00:05.5]} 50... Kf6 {[%clk 0:00:06.3]} 51. Rc3 {[%clk
0:00:04.5]} 51... Ra4 {[%clk 0:00:06.6]} 52. Rb3 {[%clk 0:00:04.4]} 52... Ra1
{[%clk 0:00:07.2]} 53. Rc3 {[%clk 0:00:02.2]} 53... Rh1 {[%clk 0:00:07.6]} 54.
Kg2 {[%clk 0:00:02.1]} 54... Rd1 {[%clk 0:00:08.3]} 55. Rb3 {[%clk 0:00:02.4]}
55... Ke5 {[%clk 0:00:08.6]} 56. Kf3 {[%clk 0:00:02.8]} 56... Kd4 {[%clk
0:00:08.4]} 57. Rb4+ {[%clk 0:00:02.9]} 57... Kc5 {[%clk 0:00:08.5]} 58. Rb3
{[%clk 0:00:03.3]} 58... Kc4 {[%clk 0:00:09.1]} 59. Ra3 {[%clk 0:00:03.6]} 59...
Rd3+ {[%clk 0:00:09.6]} 60. Rxd3 {[%clk 0:00:04]} 60... Kxd3 {[%clk 0:00:10.5]}
61. h4 {[%clk 0:00:04.8]} 61... gxh4 {[%clk 0:00:11.1]} 62. gxh4 {[%clk
0:00:05.2]} 62... e5 {[%clk 0:00:10.7]} 63. h5 {[%clk 0:00:05.4]} 63... e4+
{[%clk 0:00:11.3]} 64. Kf4 {[%clk 0:00:05.4]} 64... e3 {[%clk 0:00:11.8]} 65. h6
{[%clk 0:00:06]} 65... e2 {[%clk 0:00:12.4]} 66. h7 {[%clk 0:00:06.5]} 66...
e1=Q {[%clk 0:00:12.9]} 67. h8=Q {[%clk 0:00:07.4]} 67... Qe4+ {[%clk
0:00:11.4]} 68. Kg3 {[%clk 0:00:06.7]} 68... Qe3+ {[%clk 0:00:09.5]} 69. Kg2
{[%clk 0:00:06.3]} 69... f4 {[%clk 0:00:09.4]} 70. Qd8+ {[%clk 0:00:04.9]} 70...
Ke4 {[%clk 0:00:09.1]} 71. Qe7+ {[%clk 0:00:04.7]} 71... Kd3 {[%clk 0:00:09.6]}
72. Qd6+ {[%clk 0:00:04.6]} 72... Ke2 {[%clk 0:00:09.7]} 73. Qa6+ {[%clk
0:00:03.7]} 73... Ke1 {[%clk 0:00:09.9]} 74. Qf1+ {[%clk 0:00:03.8]} 74... Kd2
{[%clk 0:00:10]} 75. Qf2+ {[%clk 0:00:03.9]} 75... Qe2 {[%clk 0:00:09.3]} 76.
Kg1 {[%clk 0:00:02.6]} 76... f3 {[%clk 0:00:09]} 77. Qd4+ {[%clk 0:00:02.7]}
77... Kc2 {[%clk 0:00:08.5]} 78. Qc5+ {[%clk 0:00:02.4]} 78... Kd3 {[%clk
0:00:09]} 79. Qb5+ {[%clk 0:00:02.2]} 79... Ke3 {[%clk 0:00:09.4]} 80. Qe5+
{[%clk 0:00:02.1]} 80... Kd2 {[%clk 0:00:09.3]} 81. Qd4+ {[%clk 0:00:02]} 81...
Kc1 {[%clk 0:00:08.8]} 82. Qa1+ {[%clk 0:00:01.8]} 82... Kc2 {[%clk 0:00:08.8]}
83. Qa2+ {[%clk 0:00:02.1]} 83... Kd3 {[%clk 0:00:09.3]} 84. Qd5+ {[%clk
0:00:02.4]} 84... Kc3 {[%clk 0:00:08.8]} 85. Qc5+ {[%clk 0:00:02.5]} 85... Kb3
{[%clk 0:00:08.1]} 86. Qb6+ {[%clk 0:00:02.8]} 86... Kc3 {[%clk 0:00:06.8]} 87.
Qc5+ {[%clk 0:00:03]} 87... Kb3 {[%clk 0:00:03.3]} 88. Qb6+ {[%clk 0:00:03]}
88... Ka4 {[%clk 0:00:03.5]} 89. Qa7+ {[%clk 0:00:03.1]} 89... Kb5 {[%clk
0:00:04]} 90. Qb7+ {[%clk 0:00:03.2]} 90... Kc5 {[%clk 0:00:04.4]} 91. Qc7+
{[%clk 0:00:03.5]} 91... Kd5 {[%clk 0:00:04.5]} 92. Qd7+ {[%clk 0:00:03.8]}
92... Kc4 {[%clk 0:00:04.8]} 93. Qc6+ {[%clk 0:00:03.9]} 93... Kd4 {[%clk
0:00:04.9]} 94. Qd6+ {[%clk 0:00:04.1]} 94... Ke3 {[%clk 0:00:05.3]} 95. Qe5+
{[%clk 0:00:04.1]} 95... Kd3 {[%clk 0:00:05.7]} 96. Qd5+ {[%clk 0:00:04]} 96...
Kc3 {[%clk 0:00:05.7]} 97. Qc5+ {[%clk 0:00:03.9]} 1/2-1/2

[Event "*** Titled Tuesday Blitz"]
[Site "Chess.com"]
[Date "2021.03.02"]
[Round "2"]
[White "Natalya_Buksa"]
[Black "Chuchofrio1"]
[Result "1-0"]
[WhiteElo "2481"]
[BlackElo "2289"]
[TimeControl "180+1"]
[EndTime "10:12:31 PST"]
[Termination "Natalya_Buksa won by resignation"]

1. d4 {[%clk 0:03:00.9]} 1... Nf6 {[%clk 0:02:55.9]} 2. Nc3 {[%clk 0:03:00.8]}
2... g6 {[%clk 0:02:53.6]} 3. e4 {[%clk 0:02:59.8]} 3... Bg7 {[%clk 0:02:52.2]}
4. Bg5 {[%clk 0:02:59.8]} 4... d6 {[%clk 0:02:51.2]} 5. e5 {[%clk 0:02:59.9]}
5... dxe5 {[%clk 0:02:47.8]} 6. dxe5 {[%clk 0:03:00.8]} 6... Qxd1+ {[%clk
0:02:47.7]} 7. Rxd1 {[%clk 0:03:01.6]} 7... Nfd7 {[%clk 0:02:46.7]} 8. Nd5
{[%clk 0:03:01.3]} 8... f6 {[%clk 0:02:42]} 9. Nxc7+ {[%clk 0:02:59.2]} 9... Kf7
{[%clk 0:02:42.1]} 10. e6+ {[%clk 0:02:56.3]} 10... Kf8 {[%clk 0:02:41]} 11.
exd7 {[%clk 0:02:48.2]} 11... Nxd7 {[%clk 0:02:41.9]} 12. Bf4 {[%clk 0:02:41.4]}
12... e5 {[%clk 0:02:39.5]} 13. Nxa8 {[%clk 0:02:39.7]} 13... exf4 {[%clk
0:02:39.7]} 14. Nc7 {[%clk 0:02:40.2]} 14... Kf7 {[%clk 0:02:38.8]} 15. Bc4+
{[%clk 0:02:40.2]} 15... Ke7 {[%clk 0:02:38.1]} 16. Nf3 {[%clk 0:02:39.1]} 16...
Nb6 {[%clk 0:02:34.9]} 17. Nd5+ {[%clk 0:02:36.8]} 17... Nxd5 {[%clk 0:02:32.9]}
18. Bxd5 {[%clk 0:02:37.7]} 18... Kd6 {[%clk 0:02:30.2]} 19. O-O {[%clk
0:02:36.5]} 19... Re8 {[%clk 0:02:26.4]} 20. Bf7+ {[%clk 0:02:35.4]} 1-0

[Event "*** Titled Tuesday Blitz"]
[Site "Chess.com"]
[Date "2021.03.02"]
[Round "2"]
[White "gisela_roque"]
[Black "muchojogo"]
[Result "0-1"]
[WhiteElo "1736"]
[BlackElo "2354"]
[TimeControl "180+1"]
[EndTime "10:12:45 PST"]
[Termination "muchojogo won by resignation"]

1. c4 {[%clk 0:01:52.2]} 1... Nf6 {[%clk 0:02:53.4]} 2. Nf3 {[%clk 0:01:51.7]}
2... e6 {[%clk 0:02:53.4]} 3. g3 {[%clk 0:01:52.1]} 3... d5 {[%clk 0:02:53.5]}
4. b3 {[%clk 0:01:52.5]} 4... Be7 {[%clk 0:02:53.6]} 5. Bb2 {[%clk 0:01:52.7]}
5... O-O {[%clk 0:02:53.6]} 6. Bg2 {[%clk 0:01:53]} 6... a5 {[%clk 0:02:54.2]}
7. O-O {[%clk 0:01:50.3]} 7... a4 {[%clk 0:02:54]} 8. d3 {[%clk 0:01:42]} 8...
a3 {[%clk 0:02:48.8]} 9. Bc3 {[%clk 0:01:42]} 9... c5 {[%clk 0:02:47.4]} 10.
Nbd2 {[%clk 0:01:41.7]} 10... d4 {[%clk 0:02:46.9]} 0-1

[Event "*** Titled Tuesday Blitz"]
[Site "Chess.com"]
[Date "2021.03.02"]
[Round "2"]
[White "SilviusTiberius"]
[Black "ChessQueen"]
[Result "1-0"]
[WhiteElo "2521"]
[BlackElo "2726"]
[TimeControl "180+1"]
[EndTime "10:13:02 PST"]
[Termination "SilviusTiberius won by resignation"]

1. e4 {[%clk 0:03:00.9]} 1... c6 {[%clk 0:02:59.8]} 2. d4 {[%clk 0:03:01]} 2...
d5 {[%clk 0:02:58.5]} 3. exd5 {[%clk 0:03:01.9]} 3... cxd5 {[%clk 0:02:58.7]} 4.
Bd3 {[%clk 0:03:02.4]} 4... Nf6 {[%clk 0:02:57.6]} 5. c3 {[%clk 0:03:02.6]} 5...
Nc6 {[%clk 0:02:57.6]} 6. Bf4 {[%clk 0:03:02.2]} 6... e5 {[%clk 0:02:51.1]} 7.
dxe5 {[%clk 0:02:59.9]} 7... Ng4 {[%clk 0:02:50.2]} 8. Nf3 {[%clk 0:02:57]} 8...
Qb6 {[%clk 0:02:48]} 9. Qe2 {[%clk 0:02:48]} 9... Bc5 {[%clk 0:02:36.1]} 10. O-O
{[%clk 0:02:47.5]} 10... h6 {[%clk 0:02:22.2]} 11. b4 {[%clk 0:02:45.9]} 11...
Bxf2+ {[%clk 0:02:20.7]} 12. Rxf2 {[%clk 0:02:44.8]} 12... Nxf2 {[%clk 0:02:21]}
13. Qxf2 {[%clk 0:02:44.9]} 13... Qxf2+ {[%clk 0:02:19.7]} 14. Kxf2 {[%clk
0:02:44.8]} 14... O-O {[%clk 0:02:18.8]} 15. Nbd2 {[%clk 0:02:40.8]} 15... Be6
{[%clk 0:02:18.6]} 16. Nb3 {[%clk 0:02:40.1]} 16... b6 {[%clk 0:02:17.9]} 17.
Nbd4 {[%clk 0:02:39.6]} 17... Rfc8 {[%clk 0:02:17.3]} 18. Ba6 {[%clk 0:02:33]}
18... Rc7 {[%clk 0:01:57.5]} 19. Nxc6 {[%clk 0:02:31.6]} 19... Rxc6 {[%clk
0:01:57.8]} 20. Bb7 {[%clk 0:02:31.5]} 1-0

[Event "*** Titled Tuesday Blitz"]
[Site "Chess.com"]
[Date "2021.03.02"]
[Round "2"]
[White "AtabayevSaparmyrat"]
[Black "mjray79"]
[Result "1-0"]
[WhiteElo "2704"]
[BlackElo "2482"]
[TimeControl "180+1"]
[EndTime "10:13:04 PST"]
[Termination "AtabayevSaparmyrat won by checkmate"]

1. e4 {[%clk 0:03:00.9]} 1... e5 {[%clk 0:02:59.2]} 2. Nf3 {[%clk 0:03:00.3]}
2... Nc6 {[%clk 0:02:58.9]} 3. Bb5 {[%clk 0:03:00.5]} 3... a6 {[%clk 0:02:58.3]}
4. Bxc6 {[%clk 0:02:55.4]} 4... dxc6 {[%clk 0:02:59.2]} 5. Nc3 {[%clk
0:02:56.2]} 5... Bd6 {[%clk 0:02:56.9]} 6. d4 {[%clk 0:02:56.4]} 6... exd4
{[%clk 0:02:57.8]} 7. Qxd4 {[%clk 0:02:57.2]} 7... f6 {[%clk 0:02:50.3]} 8. Be3
{[%clk 0:02:57.2]} 8... Ne7 {[%clk 0:02:48.1]} 9. O-O-O {[%clk 0:02:54.1]} 9...
Be6 {[%clk 0:02:43.6]} 10. Na4 {[%clk 0:02:54]} 10... Qc8 {[%clk 0:02:28.9]} 11.
Nb6 {[%clk 0:02:49.1]} 11... cxb6 {[%clk 0:02:26.7]} 12. Qxd6 {[%clk 0:02:48.9]}
12... b5 {[%clk 0:02:11.1]} 13. Bc5 {[%clk 0:02:45.5]} 13... Qd7 {[%clk
0:02:09.4]} 14. Qg3 {[%clk 0:02:35.2]} 14... Qc8 {[%clk 0:02:05.5]} 15. Qxg7
{[%clk 0:02:34.8]} 15... Ng6 {[%clk 0:02:05.2]} 16. Nh4 {[%clk 0:02:33.9]} 16...
Rg8 {[%clk 0:02:01.5]} 17. Qxh7 {[%clk 0:02:28.1]} 17... Nxh4 {[%clk 0:01:54.5]}
18. Qe7# {[%clk 0:02:27.9]} 1-0

[Event "*** Titled Tuesday Blitz"]
[Site "Chess.com"]
[Date "2021.03.02"]
[Round "2"]
[White "doons21"]
[Black "Camels1981"]
[Result "1-0"]
[WhiteElo "2609"]
[BlackElo "2316"]
[TimeControl "180+1"]
[EndTime "10:13:36 PST"]
[Termination "doons21 won by resignation"]

1. e4 {[%clk 0:03:00.9]} 1... c5 {[%clk 0:02:35.3]} 2. c3 {[%clk 0:02:55.5]}
2... d5 {[%clk 0:02:34.4]} 3. exd5 {[%clk 0:02:55.5]} 3... Qxd5 {[%clk
0:02:35.1]} 4. d4 {[%clk 0:02:56.4]} 4... Nc6 {[%clk 0:02:34.5]} 5. Nf3 {[%clk
0:02:56.7]} 5... Bf5 {[%clk 0:02:34.2]} 6. Be3 {[%clk 0:02:56]} 6... cxd4 {[%clk
0:02:33.3]} 7. Nxd4 {[%clk 0:02:48.4]} 7... Bxb1 {[%clk 0:02:28.3]} 8. Rxb1
{[%clk 0:01:55.4]} 8... e5 {[%clk 0:02:25.6]} 9. Nxc6 {[%clk 0:01:54.6]} 9...
Qxc6 {[%clk 0:02:24.4]} 10. Qb3 {[%clk 0:01:53]} 10... a6 {[%clk 0:02:23]} 11.
Bc4 {[%clk 0:01:49.3]} 11... Qc7 {[%clk 0:02:17.2]} 12. Bb6 {[%clk 0:01:43.4]}
12... Qe7 {[%clk 0:02:13.3]} 13. Rd1 {[%clk 0:01:32.4]} 13... Nf6 {[%clk
0:02:13]} 14. Qa4+ {[%clk 0:01:29.9]} 14... Nd7 {[%clk 0:02:12.3]} 15. Bb5
{[%clk 0:01:29.6]} 1-0

[Event "*** Titled Tuesday Blitz"]
[Site "Chess.com"]
[Date "2021.03.02"]
[Round "2"]
[White "ParvizGasimov"]
[Black "Susal_De_Silva"]
[Result "0-1"]
[WhiteElo "2412"]
[BlackElo "2660"]
[TimeControl "180+1"]
[EndTime "10:13:52 PST"]
[Termination "Susal_De_Silva won by resignation"]

1. e4 {[%clk 0:03:00.9]} 1... e5 {[%clk 0:03:00.2]} 2. Bc4 {[%clk 0:03:00.2]}
2... Nf6 {[%clk 0:03:00.1]} 3. d3 {[%clk 0:03:00.9]} 3... Nc6 {[%clk 0:03:00]}
4. Nf3 {[%clk 0:03:01.4]} 4... Bc5 {[%clk 0:03:00.3]} 5. c3 {[%clk 0:03:01.9]}
5... O-O {[%clk 0:03:00.8]} 6. O-O {[%clk 0:03:02]} 6... d5 {[%clk 0:03:01.2]}
7. exd5 {[%clk 0:03:01.3]} 7... Nxd5 {[%clk 0:03:02.1]} 8. a4 {[%clk 0:03:01.8]}
8... a5 {[%clk 0:03:01.7]} 9. Re1 {[%clk 0:03:01.4]} 9... Bg4 {[%clk 0:03:02]}
10. h3 {[%clk 0:02:53.4]} 10... Bh5 {[%clk 0:03:01.9]} 11. Nbd2 {[%clk
0:02:33.9]} 11... Nb6 {[%clk 0:03:01]} 12. Bb5 {[%clk 0:02:33]} 12... Bd6 {[%clk
0:02:59.7]} 13. Ne4 {[%clk 0:02:04.3]} 13... Na7 {[%clk 0:02:58]} 14. Ng3 {[%clk
0:01:54.7]} 14... Bg6 {[%clk 0:02:57.8]} 15. Nxe5 {[%clk 0:01:41.8]} 15... Bxe5
{[%clk 0:02:53.9]} 16. Rxe5 {[%clk 0:01:41.1]} 16... c6 {[%clk 0:02:54.6]} 17.
Bg5 {[%clk 0:00:51.8]} 17... f6 {[%clk 0:02:52.4]} 0-1

[Event "*** Titled Tuesday Blitz"]
[Site "Chess.com"]
[Date "2021.03.02"]
[Round "2"]
[White "j_coca"]
[Black "DLR7"]
[Result "0-1"]
[WhiteElo "2306"]
[BlackElo "2624"]
[TimeControl "180+1"]
[EndTime "10:13:53 PST"]
[Termination "DLR7 won by resignation"]

1. f4 {[%clk 0:02:59.9]} 1... e5 {[%clk 0:02:59.3]} 2. fxe5 {[%clk 0:02:59.6]}
2... Nc6 {[%clk 0:02:59]} 3. Nf3 {[%clk 0:02:58.7]} 3... g5 {[%clk 0:02:55.8]}
4. d4 {[%clk 0:02:55.4]} 4... g4 {[%clk 0:02:51.9]} 5. Ng5 {[%clk 0:02:55.4]}
5... d6 {[%clk 0:02:50.6]} 6. exd6 {[%clk 0:02:53.8]} 6... Bxd6 {[%clk
0:02:51.5]} 7. c3 {[%clk 0:02:53.7]} 7... f5 {[%clk 0:02:45.9]} 8. e4 {[%clk
0:02:53.4]} 8... h6 {[%clk 0:02:44.1]} 9. Nh3 {[%clk 0:02:52.5]} 9... gxh3
{[%clk 0:02:41.1]} 10. Qh5+ {[%clk 0:02:53.4]} 10... Kf8 {[%clk 0:02:38]} 11. e5
{[%clk 0:02:52.2]} 11... Bxe5 {[%clk 0:02:22.1]} 12. dxe5 {[%clk 0:02:46.3]}
12... Nxe5 {[%clk 0:02:20.5]} 13. Bf4 {[%clk 0:02:44.9]} 13... hxg2 {[%clk
0:02:11.7]} 14. Bxe5 {[%clk 0:02:21.8]} 14... gxh1=Q {[%clk 0:02:06.8]} 15. Nd2
{[%clk 0:02:20.9]} 15... Qe7 {[%clk 0:02:03]} 16. O-O-O {[%clk 0:02:20.1]} 16...
Qxe5 {[%clk 0:01:51.6]} 17. Bc4 {[%clk 0:02:18.9]} 17... Qxd1+ {[%clk
0:01:50.5]} 18. Kxd1 {[%clk 0:02:18.5]} 18... Qe7 {[%clk 0:01:47.9]} 0-1

[Event "*** Titled Tuesday Blitz"]
[Site "Chess.com"]
[Date "2021.03.02"]
[Round "2"]
[White "lucasmito"]
[Black "losersgame"]
[Result "0-1"]
[WhiteElo "2521"]
[BlackElo "2322"]
[TimeControl "180+1"]
[EndTime "10:13:53 PST"]
[Termination "losersgame won by resignation"]

1. e4 {[%clk 0:03:00.9]} 1... e5 {[%clk 0:02:59.5]} 2. Nf3 {[%clk 0:03:00.5]}
2... Nc6 {[%clk 0:02:59.1]} 3. Bb5 {[%clk 0:02:57.4]} 3... a6 {[%clk 0:02:58.7]}
4. Ba4 {[%clk 0:02:57.1]} 4... d6 {[%clk 0:02:58.4]} 5. d4 {[%clk 0:02:52.4]}
5... b5 {[%clk 0:02:57.6]} 6. Bb3 {[%clk 0:02:52]} 6... Nxd4 {[%clk 0:02:57.5]}
7. Nxd4 {[%clk 0:02:52.1]} 7... exd4 {[%clk 0:02:57.7]} 8. c3 {[%clk 0:02:52.3]}
8... d3 {[%clk 0:02:41.8]} 9. f4 {[%clk 0:02:51.7]} 9... Bb7 {[%clk 0:02:37.3]}
10. O-O {[%clk 0:02:51.1]} 10... Qh4 {[%clk 0:02:28.7]} 11. Qxd3 {[%clk
0:02:46]} 11... Nf6 {[%clk 0:02:28.1]} 12. e5 {[%clk 0:02:40.5]} 12... dxe5
{[%clk 0:02:21]} 13. fxe5 {[%clk 0:02:41.4]} 13... Bc5+ {[%clk 0:02:16.1]} 14.
Kh1 {[%clk 0:02:37.9]} 14... Ng4 {[%clk 0:02:15.5]} 15. Bxf7+ {[%clk 0:02:36]}
15... Ke7 {[%clk 0:01:43.8]} 16. Bf4 {[%clk 0:02:25.4]} 16... Nf2+ {[%clk
0:01:37]} 17. Rxf2 {[%clk 0:02:25.7]} 17... Qxf2 {[%clk 0:01:36.7]} 18. Bg5+
{[%clk 0:02:20.9]} 18... Kxf7 {[%clk 0:01:31.2]} 19. Qd7+ {[%clk 0:02:19.9]}
19... Kg6 {[%clk 0:01:24.7]} 20. Qe6+ {[%clk 0:02:12.1]} 20... Kxg5 {[%clk
0:01:24]} 0-1

[Event "*** Titled Tuesday Blitz"]
[Site "Chess.com"]
[Date "2021.03.02"]
[Round "2"]
[White "zimmm36"]
[Black "Enriquack"]
[Result "1-0"]
[WhiteElo "2287"]
[BlackElo "2456"]
[TimeControl "180+1"]
[EndTime "10:13:56 PST"]
[Termination "zimmm36 won by resignation"]

1. d4 {[%clk 0:03:00.9]} 1... Nf6 {[%clk 0:02:59.8]} 2. c4 {[%clk 0:03:00.8]}
2... c5 {[%clk 0:02:59.3]} 3. d5 {[%clk 0:03:00.2]} 3... b5 {[%clk 0:02:59.5]}
4. cxb5 {[%clk 0:03:01.1]} 4... a6 {[%clk 0:02:58.3]} 5. bxa6 {[%clk 0:03:02]}
5... g6 {[%clk 0:02:58.2]} 6. Nc3 {[%clk 0:03:02.9]} 6... Bg7 {[%clk 0:02:56.8]}
7. g3 {[%clk 0:03:03.8]} 7... O-O {[%clk 0:02:56.2]} 8. Bg2 {[%clk 0:03:04.7]}
8... d6 {[%clk 0:02:50.4]} 9. Nf3 {[%clk 0:03:05.6]} 9... Bxa6 {[%clk
0:02:49.5]} 10. O-O {[%clk 0:03:06.5]} 10... Nbd7 {[%clk 0:02:41.8]} 11. Rb1
{[%clk 0:03:02.7]} 11... Nb6 {[%clk 0:02:29.6]} 12. b3 {[%clk 0:02:46.2]} 12...
Bb7 {[%clk 0:02:15.6]} 13. e4 {[%clk 0:02:39.3]} 13... Ng4 {[%clk 0:02:07.6]}
14. Bb2 {[%clk 0:02:36.9]} 14... Qc7 {[%clk 0:01:56.7]} 15. Nb5 {[%clk
0:02:23.2]} 15... Qd7 {[%clk 0:01:52.3]} 16. Bxg7 {[%clk 0:02:24.1]} 16... Kxg7
{[%clk 0:01:52.9]} 17. a4 {[%clk 0:02:25]} 17... c4 {[%clk 0:01:51.9]} 18. Qd4+
{[%clk 0:02:22.2]} 18... Nf6 {[%clk 0:01:48.5]} 19. Qxb6 {[%clk 0:02:23.1]}
19... cxb3 {[%clk 0:01:46]} 20. Qd4 {[%clk 0:02:16.1]} 20... Ba6 {[%clk
0:01:32.3]} 21. e5 {[%clk 0:02:12]} 21... dxe5 {[%clk 0:01:26.9]} 22. Nxe5
{[%clk 0:02:12.9]} 22... Qd6 {[%clk 0:01:24.9]} 23. Nxd6 {[%clk 0:02:12.1]} 1-0

[Event "*** Titled Tuesday Blitz"]
[Site "Chess.com"]
[Date "2021.03.02"]
[Round "2"]
[White "CakeinSpace2002"]
[Black "AntonovaNadezhda"]
[Result "1-0"]
[WhiteElo "2401"]
[BlackElo "2126"]
[TimeControl "180+1"]
[EndTime "10:14:07 PST"]
[Termination "CakeinSpace2002 won by resignation"]

1. e4 {[%clk 0:02:59.3]} 1... c5 {[%clk 0:02:59.1]} 2. Nf3 {[%clk 0:02:59.1]}
2... d6 {[%clk 0:02:59.1]} 3. d4 {[%clk 0:02:59.1]} 3... cxd4 {[%clk 0:02:59]}
4. Nxd4 {[%clk 0:02:59.9]} 4... Nf6 {[%clk 0:02:59.2]} 5. Nc3 {[%clk 0:03:00]}
5... a6 {[%clk 0:02:59.6]} 6. Bg5 {[%clk 0:02:59.5]} 6... Nbd7 {[%clk
0:02:58.4]} 7. f4 {[%clk 0:02:59.6]} 7... h6 {[%clk 0:02:54.5]} 8. Bh4 {[%clk
0:02:59.3]} 8... Qc7 {[%clk 0:02:52.1]} 9. Qe2 {[%clk 0:02:58.3]} 9... g5 {[%clk
0:02:34.9]} 10. Bg3 {[%clk 0:02:54.5]} 10... gxf4 {[%clk 0:02:32.2]} 11. Bh4
{[%clk 0:02:53.8]} 11... b5 {[%clk 0:02:20]} 12. O-O-O {[%clk 0:02:49.3]} 12...
Bb7 {[%clk 0:02:19.1]} 13. g3 {[%clk 0:02:46.8]} 13... fxg3 {[%clk 0:02:17.7]}
14. hxg3 {[%clk 0:02:45.7]} 14... O-O-O {[%clk 0:02:13.3]} 15. Bh3 {[%clk
0:02:45.2]} 15... Kb8 {[%clk 0:02:11.1]} 16. Rhf1 {[%clk 0:02:44.7]} 16... b4
{[%clk 0:02:00.1]} 17. Nd5 {[%clk 0:02:39.8]} 17... Nxd5 {[%clk 0:01:57.4]} 18.
exd5 {[%clk 0:02:40.7]} 18... Bxd5 {[%clk 0:01:57.4]} 19. Qxa6 {[%clk
0:02:39.1]} 19... Bb7 {[%clk 0:01:51]} 20. Qb5 {[%clk 0:02:35]} 20... e5 {[%clk
0:01:42.2]} 21. Rxf7 {[%clk 0:02:30.2]} 21... exd4 {[%clk 0:01:31.6]} 22. Bxd7
{[%clk 0:02:28.9]} 22... d5 {[%clk 0:01:20.1]} 23. Bxd8 {[%clk 0:02:24.7]} 23...
Qxd8 {[%clk 0:01:18.4]} 24. Bc6 {[%clk 0:02:23.7]} 1-0

[Event "*** Titled Tuesday Blitz"]
[Site "Chess.com"]
[Date "2021.03.02"]
[Round "2"]
[White "Rodalquilar"]
[Black "kidagent"]
[Result "1-0"]
[WhiteElo "2630"]
[BlackElo "2326"]
[TimeControl "180+1"]
[EndTime "10:14:12 PST"]
[Termination "Rodalquilar won by resignation"]

1. d4 {[%clk 0:03:00.9]} 1... d5 {[%clk 0:02:59.8]} 2. Bf4 {[%clk 0:03:01]} 2...
c5 {[%clk 0:02:55.8]} 3. e3 {[%clk 0:03:01.5]} 3... cxd4 {[%clk 0:02:55.3]} 4.
exd4 {[%clk 0:03:02.4]} 4... Nc6 {[%clk 0:02:55.2]} 5. Nf3 {[%clk 0:03:02.8]}
5... Nf6 {[%clk 0:02:54.7]} 6. Nbd2 {[%clk 0:03:03.1]} 6... Bg4 {[%clk
0:02:48.6]} 7. c3 {[%clk 0:03:02.8]} 7... e6 {[%clk 0:02:48.6]} 8. Qb3 {[%clk
0:03:02.8]} 8... Qc8 {[%clk 0:02:39.7]} 9. Bd3 {[%clk 0:03:01.4]} 9... Be7
{[%clk 0:02:39.1]} 10. O-O {[%clk 0:03:01.6]} 10... O-O {[%clk 0:02:38.8]} 11.
a4 {[%clk 0:03:02.1]} 11... b6 {[%clk 0:02:21.5]} 12. Rfe1 {[%clk 0:02:59.4]}
12... Na5 {[%clk 0:02:03.5]} 13. Qc2 {[%clk 0:02:59.4]} 13... h6 {[%clk
0:01:53.9]} 14. Ne5 {[%clk 0:02:57.6]} 14... Bh5 {[%clk 0:01:52.6]} 15. h3
{[%clk 0:02:48.8]} 15... Nc6 {[%clk 0:01:48.9]} 16. g4 {[%clk 0:02:47.9]} 16...
Nxe5 {[%clk 0:01:45.1]} 17. dxe5 {[%clk 0:02:47.6]} 17... Nxg4 {[%clk
0:01:43.9]} 18. hxg4 {[%clk 0:02:48.5]} 18... Bxg4 {[%clk 0:01:44.5]} 19. Kh2
{[%clk 0:02:44.9]} 19... Bh4 {[%clk 0:01:27.7]} 20. Rg1 {[%clk 0:02:34.5]} 20...
Bf5 {[%clk 0:01:23.1]} 21. Bxh6 {[%clk 0:02:09.2]} 1-0